Workbook

Sheet Осиново
A1: Школа | F1: Утвердил: | G1: должность
A2: Типовое примерное меню приготавливаемых блюд | G2: фамилия
A3: Возрастная категория | E3: 7-11 лет | G3: дата | H3: 16 | I3: 10 | J3: 2023
H4: день | I4: месяц | J4: год
A5: Неделя | B5: День недели | C5: Прием пищи | D5: Раздел меню | E5: Блюда | F5: Вес блюда, г | G5: Белки | H5: Жиры | I5: Углеводы | J5: Калорийность | K5: № рецептуры | L5: Цена
A6: 1 | B6: 1 | C6: Завтрак | D6: 2 блюдо | E6: Биточки Дружба с соусом красным основным | F6: 100 | G6: 9.72 | H6: 10.86 | I6: 10.29 | J6: 180 | K6: ТТК №355, ТТК №362 | L6: 46.7
D7: гарнир | E7: Макаронные изделия отварные с зел.горошком консерв., припущенным | F7: 180 | G7: 6.2 | H7: 5.45 | I7: 36.78 | J7: 216 | K7: №516 сб. 2004 г., ТТК №602С | L7: 11.5
D8: гор.напиток | E8: Чай полусладкий | F8: 210 | G8: 0 | H8: 0 | I8: 9.98 | J8: 40 | K8: ТТК №395 | L8: 2.3
D9: хлеб | E9: Хлеб Сельский | F9: 46 | G9: 2.53 | H9: 0.46 | I9: 20.7 | J9: 143 | K9: №1 сб.2004 г. | L9: 3.69
D13: итого | F13: =SUM(F6:F12) -> 536 | G13: 18.45 | H13: 16.77 | I13: 77.75 | J13: 579 | L13: =SUM(L6:L12) -> 64.19
A14: =A6 -> 1 | B14: 1 | C14: Обед | D14: закуска
D15: 1 блюдо
D16: 2 блюдо
D17: гарнир
D18: напиток
D19: хлеб бел.
D20: хлеб черн.
D23: итого | F23: =SUM(F14:F22) -> 0 | G23: 0 | H23: 0 | I23: 0 | J23: 0 | L23: =SUM(L14:L22) -> 0
A24: =A6 -> 1 | B24: 1 | C24: Итого за день: | F24: =F13+F23 -> 536 | G24: 18.45 | H24: 16.77 | I24: 77.75 | J24: 579 | L24: =L13+L23 -> 64.19
A25: 1 | B25: 2 | C25: Завтрак | D25: 2 блюдо | E25: Сосиски отварные с соусом красным основным | F25: 100 | G25: 7.82 | H25: 17 | I25: 1.15 | J25: 189 | K25: №413 сб.2004 г., ТТК №362 | L25: 43.9
D26: гарнир | E26: Каша пшеничная вязкая | F26: 190 | G26: 5.25 | H26: 6.08 | I26: 30.77 | J26: 197 | K26: №510 табл.4 сб.2004 г. | L26: 7.6
D27: напиток | E27: Напиток апельсиновый | F27: 200 | G27: 0 | H27: 0 | I27: 17 | J27: 68 | K27: ТТК №510С | L27: 9.1
D28: хлеб | E28: Хлеб Сельский | F28: 45 | G28: 2.47 | H28: 0.45 | I28: 20.25 | J28: 140 | K28: №1 сб.2004 г. | L28: 3.59
D32: итого | F32: =SUM(F25:F31) -> 535 | G32: 15.54 | H32: 23.53 | I32: 69.17 | J32: 594 | L32: =SUM(L25:L31) -> 64.19
A33: =A25 -> 1 | B33: 2 | C33: Обед | D33: закуска
D34: 1 блюдо
D35: 2 блюдо
D36: гарнир
D37: напиток
D38: хлеб бел.
D39: хлеб черн.
D42: итого | F42: =SUM(F33:F41) -> 0 | G42: 0 | H42: 0 | I42: 0 | J42: 0 | L42: =SUM(L33:L41) -> 0
A43: =A25 -> 1 | B43: 2 | C43: Итого за день: | F43: =F32+F42 -> 535 | G43: 15.54 | H43: 23.53 | I43: 69.17 | J43: 594 | L43: =L32+L42 -> 64.19
A44: 1 | B44: 3 | C44: Завтрак | D44: гор.блюдо | E44: Каша пшенная молочная с маслом сливочным, яйцо вареное | F44: 218 | G44: 13.05 | H44: 17.04 | I44: 35.71 | J44: 346 | K44: №510 табл.4 сб.2004 г., №337 сб.2004 г. | L44: 33.3
D45: гор.напиток | E45: Чай с сахаром | F45: 215 | G45: 0.2 | H45: 0.05 | I45: 15.01 | J45: 57 | K45: №685 сб. 2004 г. | L45: 3
D46: хлеб | E46: Хлеб Сельский | F46: 37 | G46: 2.03 | H46: 0.37 | I46: 16.65 | J46: 115 | K46: №1 сб.2004 г. | L46: 2.89
D47: сладкое | E47: Корж Молочный, 1 шт. | F47: 65 | G47: 4.16 | H47: 7.21 | I47: 41.79 | J47: 248 | L47: 25
D51: итого | F51: =SUM(F44:F50) -> 535 | G51: 19.44 | H51: 24.67 | I51: 109.16 | J51: 766 | L51: =SUM(L44:L50) -> 64.19
A52: =A44 -> 1 | B52: 3 | C52: Обед | D52: закуска
D53: 1 блюдо
D54: 2 блюдо
D55: гарнир
D56: напиток
D57: хлеб бел.
D58: хлеб черн.
D61: итого | F61: =SUM(F52:F60) -> 0 | G61: 0 | H61: 0 | I61: 0 | J61: 0 | L61: =SUM(L52:L60) -> 0
A62: =A44 -> 1 | B62: 3 | C62: Итого за день: | F62: =F51+F61 -> 535 | G62: 19.44 | H62: 24.67 | I62: 109.16 | J62: 766 | L62: =L51+L61 -> 64.19
A63: 1 | B63: 4 | C63: Завтрак | D63: 2 блюдо | E63: Гуляш из филе птицы | F63: 90 | G63: 11.57 | H63: 14.62 | I63: 3.39 | J63: 190 | K63: №437 сб.рец. 2004 г. | L63: 44.3
D64: гор.блюдо | E64: Каша гречневая вязкая с доп.гарниром овощи свежие (помидоры) порционно | F64: 180 | G64: 4.84 | H64: 5.59 | I64: 23.27 | J64: 165 | K64: №510 табл.4 сб.2004 г., табл.24 сб.1996 г. | L64: 14.5
D65: гор.напиок | E65: Чай с сахаром | F65: 215 | G65: 0.2 | H65: 0.05 | I65: 15.01 | J65: 57 | K65: №685 сб. 2004 г. | L65: 3
D66: хлеб | E66: Хлеб Сельский | F66: 30 | G66: 1.65 | H66: 0.3 | I66: 13.5 | J66: 93 | K66: №1 сб.2004 г. | L66: 2.39
D70: итого | F70: =SUM(F63:F69) -> 515 | G70: 18.26 | H70: 20.56 | I70: 55.17 | J70: 505 | L70: =SUM(L63:L69) -> 64.19
A71: =A63 -> 1 | B71: 4 | C71: Обед | D71: закуска
D72: 1 блюдо
D73: 2 блюдо
D74: гарнир
D75: напиток
D76: хлеб бел.
D77: хлеб черн.
D80: итого | F80: =SUM(F71:F79) -> 0 | G80: 0 | H80: 0 | I80: 0 | J80: 0 | L80: =SUM(L71:L79) -> 0
A81: =A63 -> 1 | B81: 4 | C81: Итого за день: | F81: =F70+F80 -> 515 | G81: 18.26 | H81: 20.56 | I81: 55.17 | J81: 505 | L81: =L70+L80 -> 64.19
A82: 1 | B82: 5 | C82: Завтрак | D82: 2 блюдо | E82: Биточки рыбные с соусом красным основным | F82: 100 | G82: 10.08 | H82: 5.52 | I82: 13.15 | J82: 146 | K82: №388 сб.2004 г., ТТК №362 | L82: 35.7
D83: гарнир | E83: Пюре картофельное | F83: 160 | G83: 3.3 | H83: 5.82 | I83: 19.48 | J83: 155 | K83: №520 сб.2004 г. | L83: 16.2
D84: гор.напиток | E84: Чай с сахаром и лимоном | F84: 222 | G84: 0.26 | H84: 0.06 | I84: 15.27 | J84: 59 | K84: №686 сб.2004 г. | L84: 5
D85: хлеб | E85: Хлеб Сельский | F85: 23 | G85: 1.26 | H85: 0.23 | I85: 10.35 | J85: 71 | K85: №1 сб.2004 г. | L85: 1.79
D86: сладкое | E86: Вафли неглазированные, 1 шт. | F86: 20 | G86: 1.42 | H86: 4.52 | I86: 8.62 | J86: 99 | L86: 5.5
D89: итого | F89: =SUM(F82:F88) -> 525 | G89: 16.32 | H89: 16.15 | I89: 66.87 | J89: 530 | L89: =SUM(L82:L88) -> 64.19
A90: =A82 -> 1 | B90: 5 | C90: Обед | D90: закуска
D91: 1 блюдо
D92: 2 блюдо
D93: гарнир
D94: напиток
D95: хлеб бел.
D96: хлеб черн.
D99: итого | F99: =SUM(F90:F98) -> 0 | G99: 0 | H99: 0 | I99: 0 | J99: 0 | L99: =SUM(L90:L98) -> 0
A100: =A82 -> 1 | B100: 5 | C100: Итого за день: | F100: =F89+F99 -> 525 | G100: 16.32 | H100: 16.15 | I100: 66.87 | J100: 530 | L100: =L89+L99 -> 64.19
A101: 2 | B101: 1 | C101: Завтрак | D101: гор.блюдо | E101: Каша молочная овсяная с маслом сливочным | F101: 155 | G101: 6.12 | H101: 8.81 | I101: 26.16 | J101: 207 | K101: №510 табл.4 сб.2004 г. | L101: 15
D102: напиток | E102: Нектар в ассортименте | F102: 200 | G102: 0.6 | H102: 0 | I102: 34 | J102: 132 | K102: ТТК №500С | L102: 18.9
D103: хлеб | E103: Хлеб Сельский | F103: 30 | G103: 1.65 | H103: 0.3 | I103: 13.5 | J103: 93 | K103: №1 сб.2004 г. | L103: 2.39
D104: сладкое | E104: Пряник в индивидуальной упаковке, 1 шт. | F104: 40 | G104: 2.04 | H104: 2.08 | I104: 29.48 | J104: 144 | L104: 11.5
D105: фрукты | E105: Десерт фруктовый (яблоко) | F105: 100 | G105: 0.4 | H105: 0.4 | I105: 9.8 | J105: 47.06 | K105: ТТК №389 | L105: 16.4
D108: итого | F108: =SUM(F101:F107) -> 525 | G108: 10.81 | H108: 11.59 | I108: 112.94 | J108: =SUM(J101:J107) -> 623.06 | L108: =SUM(L101:L107) -> 64.19
A109: =A101 -> 2 | B109: 1 | C109: Обед | D109: закуска
D110: 1 блюдо
D111: 2 блюдо
D112: гарнир
D113: напиток
D114: хлеб бел.
D115: хлеб черн.
D118: итого | F118: =SUM(F109:F117) -> 0 | G118: 0 | H118: 0 | I118: 0 | J118: 0 | L118: =SUM(L109:L117) -> 0
A119: =A101 -> 2 | B119: 1 | C119: Итого за день: | F119: =F108+F118 -> 525 | G119: 10.81 | H119: 11.59 | I119: 112.94 | J119: 623.06 | L119: =L108+L118 -> 64.19
A120: 2 | B120: 2 | C120: Завтрак | D120: гор.блюдо | E120: Картофель тушеный с фаршем из мяса птицы с доп.гарниром овощи свежие (огурцы, помидоры) порционно | F120: 260 | G120: 15.19 | H120: 10.42 | I120: 20.22 | J120: 236 | K120: ТТК №100С, табл.24 сб.1996 г. | L120: 55.3
D121: гор.напиток | E121: Чай с сахаром | F121: 215 | G121: 0.2 | H121: 0.05 | I121: 15.01 | J121: 57 | K121: №685 сб. 2004 г. | L121: 3
D122: хлеб | E122: Хлеб Сельский | F122: 42 | G122: 2.31 | H122: 0.42 | I122: 18.9 | J122: 130 | K122: №1 сб.2004 г. | L122: 3.39
D123: сладкое | E123: Печенье формовое, 1 шт. | F123: 15 | G123: 1.09 | H123: 2.7 | I123: 10.42 | J123: 70 | L123: 2.5
D127: итого | F127: =SUM(F120:F126) -> 532 | G127: 18.79 | H127: 13.59 | I127: 64.55 | J127: 493 | L127: =SUM(L120:L126) -> 64.19
A128: =A120 -> 2 | B128: 2 | C128: Обед | D128: закуска
D129: 1 блюдо
D130: 2 блюдо
D131: гарнир
D132: напиток
D133: хлеб бел.
D134: хлеб черн.
D137: итого | F137: =SUM(F128:F136) -> 0 | G137: 0 | H137: 0 | I137: 0 | J137: 0 | L137: =SUM(L128:L136) -> 0
A138: =A120 -> 2 | B138: 2 | C138: Итого за день: | F138: =F127+F137 -> 532 | G138: 18.79 | H138: 13.59 | I138: 64.55 | J138: 493 | L138: =L127+L137 -> 64.19
A139: 2 | B139: 3 | C139: Завтрак | D139: 2 блюдо | E139: Гуляш из филе птицы | F139: 100 | G139: 12.84 | H139: 16.24 | I139: 3.76 | J139: 211 | K139: ТТК № 101С | L139: 49.2
D140: гарнир | E140: Каша гречневая вязкая | F140: 170 | G140: 5.11 | H140: 6.27 | I140: 25.09 | J140: 179 | K140: №510 табл.4 сб.2004 г. | L140: 10.2
D141: гор.блюдо | E141: Чай полусладкий | F141: 210 | G141: 0 | H141: 0 | I141: 9.98 | J141: 40 | K141: ТТК №512С | L141: 2.3
D142: хлеб | E142: Хлеб Сельский | F142: 31 | G142: 1.7 | H142: 0.31 | I142: 13.95 | J142: 96 | K142: №1 сб.2004 г. | L142: 2.49
D146: итого | F146: =SUM(F139:F145) -> 511 | G146: 19.65 | H146: 22.82 | I146: 52.78 | J146: 526 | L146: =SUM(L139:L145) -> 64.19
A147: =A139 -> 2 | B147: 3 | C147: Обед | D147: закуска
D148: 1 блюдо
D149: 2 блюдо
D150: гарнир
D151: напиток
D152: хлеб бел.
D153: хлеб черн.
D156: итого | F156: =SUM(F147:F155) -> 0 | G156: 0 | H156: 0 | I156: 0 | J156: 0 | L156: =SUM(L147:L155) -> 0
A157: =A139 -> 2 | B157: 3 | C157: Итого за день: | F157: =F146+F156 -> 511 | G157: 19.65 | H157: 22.82 | I157: 52.78 | J157: 526 | L157: =L146+L156 -> 64.19
A158: 2 | B158: 4 | C158: Завтрак | D158: гор.блюдо | E158: Каша пшеничная вязкая молочная с маслом сливочным, яйцо вареное | F158: 228 | G158: 13.18 | H158: 16.04 | I158: 37.64 | J158: 342 | K158: №510 табл.4 сб.2004г., №337 сб.2004г. | L158: 33
D159: гор.напиток | E159: Чай с сахаром | F159: 215 | G159: 0.2 | H159: 0.05 | I159: 15.01 | J159: 57 | K159: №685 сб. 2004 г. | L159: 3
D160: хлеб | E160: Хлеб Сельский | F160: 28 | G160: 1.54 | H160: 0.28 | I160: 12.6 | J160: 87 | K160: №1 сб.2004 г. | L160: 2.19
D161: сладкое | E161: Пирожное песочное Лакомка, 1 шт. | F161: 50 | G161: 2.2 | H161: 13.6 | I161: 32 | J161: 227 | L161: 26
D165: итого | F165: =SUM(F158:F164) -> 521 | G165: 17.12 | H165: 29.97 | I165: 97.25 | J165: 713 | L165: =SUM(L158:L164) -> 64.19
A166: =A158 -> 2 | B166: 4 | C166: Обед | D166: закуска
D167: 1 блюдо
D168: 2 блюдо
D169: гарнир
D170: напиток
D171: хлеб бел.
D172: хлеб черн.
D175: итого | F175: =SUM(F166:F174) -> 0 | G175: 0 | H175: 0 | I175: 0 | J175: 0 | L175: =SUM(L166:L174) -> 0
A176: =A158 -> 2 | B176: 4 | C176: Итого за день: | F176: =F165+F175 -> 521 | G176: 17.12 | H176: 29.97 | I176: 97.25 | J176: 713 | L176: =L165+L175 -> 64.19
A177: 2 | B177: 5 | C177: Завтрак | D177: 2 блюдо | E177: Котлеты Любительские с соусом красным основным | F177: 100 | G177: 12.28 | H177: 10.72 | I177: 11.69 | J177: 205 | K177: ТТК №286, ТТК №362 | L177: 46.7
D178: гарнир | E178: Макаронные изделия отварные | F178: 180 | G178: 6.25 | H178: 5.75 | I178: 38.32 | J178: 225 | K178: №516 сб. 2004 г. | L178: 9.8
D179: гор.напиток | E179: Чай с сахаром и лимоном | F179: 222 | G179: 0.26 | H179: 0.06 | I179: 15.27 | J179: 59 | K179: №686 сб. 2004 г. | L179: 5
D180: хлеб | E180: Хлеб Сельский | F180: 34 | G180: 1.87 | H180: 0.34 | I180: 15.3 | J180: 106 | K180: №1 сб.2004 г. | L180: 2.69
D184: итого | F184: =SUM(F177:F183) -> 536 | G184: 20.66 | H184: 16.87 | I184: 80.58 | J184: 595 | L184: =SUM(L177:L183) -> 64.19
A185: =A177 -> 2 | B185: 5 | C185: Обед | D185: закуска
D186: 1 блюдо
D187: 2 блюдо
D188: гарнир
D189: напиток
D190: хлеб бел.
D191: хлеб черн.
D194: итого | F194: =SUM(F185:F193) -> 0 | G194: 0 | H194: 0 | I194: 0 | J194: 0 | L194: =SUM(L185:L193) -> 0
A195: =A177 -> 2 | B195: 5 | C195: Итого за день: | F195: =F184+F194 -> 536 | G195: 20.66 | H195: 16.87 | I195: 80.58 | J195: 595 | L195: =L184+L194 -> 64.19
C196: Среднее значение за период: | F196: =(F24+F43+F62+F81+F100+F119+F138+F157+F176+F195)/(IF(F24=0,0,1)+IF(F43=0,0,1)+IF(F62=0,0,1)+IF(F81=0,0,1)+IF(F100=0,0,1)+IF(F119=0,0,1)+IF(F138=0,0,1)+IF(F157=0,0,1)+IF(F176=0,0,1)+IF(F195=0,0,1)) -> 527.1 | G196: 17.504 | H196: 19.652 | I196: 78.622 | J196: 592.406 | L196: =(L24+L43+L62+L81+L100+L119+L138+L157+L176+L195)/(IF(L24=0,0,1)+IF(L43=0,0,1)+IF(L62=0,0,1)+IF(L81=0,0,1)+IF(L100=0,0,1)+IF(L119=0,0,1)+IF(L138=0,0,1)+IF(L157=0,0,1)+IF(L176=0,0,1)+IF(L195=0,0,1)) -> 64.19
